fUST/lending_fUST_20250630
["ID","MTS","AMOUNT","RATE_DAILY","PERIOD"]
[368608863,1751233832367,-460.0,0.00018325,2]
[368608864,1751233832377,-460.0,0.00018325,2]
[368608866,1751233832386,-460.0,0.00018325,2]
[368608868,1751233832395,-1216.38,0.00018325,2]
[368608870,1751233832404,-527.5,0.00018325,2]
[368608872,1751233832416,-460.0,0.00018325,2]
[368608874,1751233832427,-2121.93,0.00018325,2]
[368608876,1751233832436,-1763.31675502,0.00018325,2]
[368608880,1751233832470,-216.76324498,0.00018325,2]
[368608883,1751233832479,-460.0,0.00018325,2]
[368608884,1751233832489,-460.0,0.00018325,2]
[368608886,1751233832499,-460.0,0.00018325,2]
[368608888,1751233832508,-460.0,0.00018325,2]
[368608890,1751233832519,-164.60552812,0.00018325,2]
[368608892,1751233832530,-295.39447188,0.00018325,2]
[368608893,1751233832539,-500.0,0.00018325,2]
[368608894,1751233832549,-1967.76,0.00018325,2]
[368608895,1751233832558,-620.96,0.00018325,2]
[368608896,1751233832568,-2282.49,0.00018325,2]
[368608897,1751233832577,-460.0,0.00018325,2]
[368608898,1751233832587,-460.0,0.00018325,2]
[368608899,1751233832597,-460.0,0.00018325,2]
[368608900,1751233832606,-936.33,0.00018325,2]
[368608901,1751233832616,-460.0,0.00018325,2]
[368608902,1751233832625,-369.93431454,0.00018325,2]
[368608939,1751233837958,-90.06568546,0.00018325,2]
[368608941,1751233837969,-460.0,0.00018325,2]
[368608943,1751233837979,-460.0,0.00018325,2]
[368608945,1751233837988,-542.42,0.00018325,2]
[368608947,1751233837997,-460.0,0.00018325,2]
[368608949,1751233838007,-460.0,0.00018325,2]
[368608951,1751233838016,-899.13,0.00018325,2]
[368608952,1751233838026,-460.0,0.00018325,2]
[368608953,1751233838035,-460.0,0.00018325,2]
[368608954,1751233838044,-460.0,0.00018325,2]
[368608955,1751233838054,-460.0,0.00018325,2]
[368608956,1751233838064,-460.0,0.00018325,2]
[368608957,1751233838073,-460.0,0.00018325,2]
[368608958,1751233838083,-460.0,0.00018325,2]
[368608959,1751233838091,-460.0,0.00018325,2]
[368608961,1751233838102,-460.0,0.00018326,2]
[368608962,1751233838111,-460.0,0.00018326,2]
[368608963,1751233838120,-460.0,0.00018326,2]
[368608964,1751233838129,-460.0,0.00018326,2]
[368608965,1751233838138,-460.0,0.00018326,2]
[368608966,1751233838147,-460.0,0.00018326,2]
[368608967,1751233838157,-460.0,0.00018326,2]
[368608968,1751233838166,-593.08644716,0.00018326,2]
[368608969,1751233838175,-460.0,0.00018326,2]
[368608970,1751233838185,-450.87348438,0.00018326,2]
[368608971,1751233838204,-23.35651562,0.00018326,2]
[368608972,1751233838213,-460.0,0.00018326,2]
[368608973,1751233838223,-460.0,0.00018326,2]
[368608974,1751233838233,-460.0,0.00018326,2]
[368608975,1751233838243,-460.0,0.00018326,2]
[368608976,1751233838252,-622.66,0.00018326,2]
[368608977,1751233838261,-273.80615178,0.00018326,2]
[368608978,1751233838273,-186.19384822,0.00018326,2]
[368608979,1751233838282,-1028.11,0.00018326,2]
[368608980,1751233838291,-460.0,0.00018326,2]
[368608981,1751233838301,-460.0,0.00018326,2]
[368608982,1751233838310,-460.0,0.00018326,2]
[368608983,1751233838320,-1576.52,0.00018326,2]
[368608984,1751233838331,-853.98,0.00018326,2]
[368608985,1751233838340,-460.0,0.00018326,2]
[368608986,1751233838350,-460.0,0.00018326,2]
[368608987,1751233838359,-460.0,0.00018326,2]
[368608988,1751233838368,-460.0,0.00018326,2]
[368608989,1751233838378,-460.0,0.00018326,2]
[368608990,1751233838387,-460.0,0.00018326,2]
[368608991,1751233838396,-960.49,0.00018326,2]
[368608992,1751233838406,-618.35,0.00018326,2]
[368608993,1751233838416,-460.0,0.00018326,2]
[368608994,1751233838428,-2366.18,0.00018326,2]
[368608995,1751233838437,-137.06564018,0.00018326,2]
[368609006,1751233840218,-460.0,0.00018325,2]
[368609007,1751233840228,-322.93435982,0.00018326,2]
[368609008,1751233840238,-471.95,0.00018326,2]
[368609009,1751233840247,-425.11564018,0.00018326,2]
[368609010,1751233840258,-34.88435982,0.00018326,2]
[368609011,1751233840267,-3061.77,0.00018326,2]
[368609012,1751233840278,-778.68,0.00018326,2]
[368609013,1751233840287,-500.0,0.00018326,2]
[368609014,1751233840297,-1165.47,0.00018326,2]
[368609015,1751233840306,-460.0,0.00018327,2]
[368609016,1751233840317,-460.0,0.00018327,2]
[368609017,1751233840326,-460.0,0.00018327,2]
[368609018,1751233840336,-460.0,0.00018327,2]
[368609019,1751233840347,-460.0,0.00018327,2]
[368609020,1751233840356,-941.78,0.00018327,2]
[368609021,1751233840365,-500.0,0.00018327,2]
[368609022,1751233840375,-500.0,0.00018327,2]
[368609023,1751233840384,-500.0,0.00018327,2]
[368609024,1751233840393,-500.0,0.00018327,2]
[368609025,1751233840403,-460.0,0.00018328,2]
[368609026,1751233840412,-460.0,0.00018328,2]
[368609027,1751233840426,-460.0,0.00018328,2]
[368609028,1751233840436,-460.0,0.00018328,2]
[368609029,1751233840445,-460.0,0.00018328,2]
[368609030,1751233840455,-460.0,0.00018328,2]
[368609031,1751233840465,-460.0,0.00018328,2]
[368609032,1751233840474,-460.0,0.00018328,2]
[368609033,1751233840483,-460.0,0.00018328,2]
[368609034,1751233840495,-460.0,0.00018328,2]
[368609035,1751233840505,-460.0,0.00018328,2]
[368609036,1751233840514,-460.0,0.00018328,2]
[368609037,1751233840523,-456.81367445,0.00018328,2]
[368609038,1751233840532,-460.0,0.00018328,2]
[368609039,1751233840542,-460.0,0.00018328,2]
[368609040,1751233840551,-523.59,0.00018328,2]
[368609041,1751233840561,-460.0,0.00018328,2]
[368609042,1751233840570,-714.0,0.00018509,2]
[368609043,1751233840579,-460.0,0.00018598,2]
[368609044,1751233840588,-460.0,0.00018598,2]
[368609045,1751233840598,-1066.61,0.00018598,2]
[368609046,1751233840606,-587.46,0.00018599,2]
[368609047,1751233840615,-460.0,0.00018599,2]
[368609048,1751233840624,-460.0,0.00018599,2]
[368609049,1751233840634,-1718.89,0.00018599,2]
[368609050,1751233840643,-509.77,0.00018599,2]
[368609051,1751233840653,-460.0,0.00018599,2]
[368609052,1751233840664,-460.0,0.00018599,2]
[368609053,1751233840674,-460.0,0.00018599,2]
[368609054,1751233840683,-527.5,0.00018599,2]
[368609055,1751233840693,-460.0,0.00018599,2]
[368609056,1751233840702,-2121.93,0.00018599,2]
[368609057,1751233840712,-1980.08,0.00018599,2]
[368609058,1751233840722,-460.0,0.00018599,2]
[368609059,1751233840731,-460.0,0.00018599,2]
[368609060,1751233840740,-460.0,0.00018599,2]
[368609061,1751233840750,-460.0,0.00018599,2]
[368609062,1751233840759,-500.0,0.00018599,2]
[368609063,1751233840769,-1967.76,0.00018599,2]
[368609064,1751233840778,-620.96,0.00018599,2]
[368609065,1751233840789,-2282.49,0.00018599,2]
[368609066,1751233840798,-460.0,0.00018599,2]
[368609067,1751233840808,-569.25,0.00018599,2]
[368609068,1751233840817,-936.33,0.00018599,2]
[368609069,1751233840827,-535.79,0.00018599,2]
[368609070,1751233840836,-460.0,0.00018599,2]
[368609071,1751233840845,-534.24,0.00018599,2]
[368609072,1751233840855,-899.13,0.00018599,2]
[368609073,1751233840865,-460.0,0.00018599,2]
[368609074,1751233840874,-460.0,0.00018599,2]
[368609075,1751233840883,-460.0,0.00018599,2]
[368609076,1751233840892,-460.0,0.00018599,2]
[368609077,1751233840901,-460.0,0.00018599,2]
[368609078,1751233840911,-460.0,0.00018599,2]
[368609079,1751233840920,-460.0,0.00018599,2]
[368609080,1751233840930,-460.0,0.00018599,2]
[368609081,1751233840939,-460.0,0.000186,2]
[368609082,1751233840949,-460.0,0.000186,2]
[368609083,1751233840958,-460.0,0.000186,2]
[368609084,1751233840968,-460.0,0.000186,2]
[368609085,1751233840977,-540.90249887,0.000186,2]
[368609086,1751233840987,-460.0,0.000186,2]
[368609087,1751233840996,-474.23,0.000186,2]
[368609088,1751233841005,-460.0,0.000186,2]
[368609089,1751233841014,-460.0,0.000186,2]
[368609090,1751233841023,-460.0,0.000186,2]
[368609091,1751233841033,-460.0,0.000186,2]
[368609092,1751233841042,-622.66,0.000186,2]
[368609093,1751233841052,-982.04174212,0.000186,2]
[368609094,1751233841064,-46.06825788,0.000186,2]
[368609095,1751233841074,-460.0,0.000186,2]
[368609096,1751233841082,-1576.52,0.000186,2]
[368609097,1751233841092,-853.98,0.000186,2]
[368609098,1751233841101,-460.0,0.000186,2]
[368609099,1751233841111,-460.0,0.000186,2]
[368609100,1751233841121,-460.0,0.000186,2]
[368609101,1751233841130,-960.49,0.000186,2]
[368609102,1751233841139,-618.35,0.000186,2]
[368609103,1751233841148,-2366.18,0.000186,2]
[368609104,1751233841158,-460.0,0.000186,2]
[368609105,1751233841167,-471.95,0.000186,2]
[368609106,1751233841177,-460.0,0.000186,2]
[368609107,1751233841186,-3061.77,0.000186,2]
[368609108,1751233841196,-778.68,0.000186,2]
[368609109,1751233841205,-500.0,0.000186,2]
[368609110,1751233841214,-772.64221434,0.000186,2]
[368609118,1751233843383,-392.82778566,0.000186,2]
[368609119,1751233843393,-460.0,0.00018601,2]
[368609120,1751233843404,-460.0,0.00018601,2]
[368609121,1751233843415,-460.0,0.00018601,2]
[368609122,1751233843429,-941.78,0.00018601,2]
[368609123,1751233843439,-500.0,0.00018601,2]
[368609124,1751233843450,-500.0,0.00018601,2]
[368609125,1751233843460,-540.21084401,0.00018601,2]
[368609126,1751233843469,-460.0,0.00018602,2]
[368609127,1751233843478,-480.43,0.00018602,2]
[368609128,1751233843490,-460.0,0.00018602,2]
[368609129,1751233843500,-460.0,0.00018602,2]
[368609130,1751233843510,-460.0,0.00018602,2]
[368609131,1751233843519,-460.0,0.00018602,2]
[368609132,1751233843529,-252.32188571,0.00018739,2]
[368609133,1751233843538,-775.0,0.00018815,2]
[368609134,1751233843547,-460.0,0.00018872,2]
[368609135,1751233843556,-460.0,0.00018872,2]
[368609136,1751233843565,-1066.61,0.00018872,2]
[368609137,1751233843575,-460.0,0.00018873,2]
[368609138,1751233843584,-1718.89,0.00018873,2]
[368609139,1751233843593,-509.77,0.00018873,2]
[368609140,1751233843602,-460.0,0.00018873,2]
[368609141,1751233843612,-460.0,0.00018873,2]
[368609142,1751233843621,-460.0,0.00018873,2]
[368609143,1751233843630,-527.5,0.00018873,2]
[368609144,1751233843639,-2004.55469735,0.00018873,2]
[368609145,1751233843651,-117.37530265,0.00018873,2]
[368609146,1751233843660,-1980.08,0.00018873,2]
[368609147,1751233843669,-460.0,0.00018873,2]
[368609148,1751233843679,-342.57760456,0.00018873,2]
[368609149,1751233843688,-460.0,0.00018873,2]
[368609150,1751233843697,-460.0,0.00018873,2]
[368609151,1751233843707,-500.0,0.00018873,2]
[368609152,1751233843717,-1967.76,0.00018873,2]
[368609153,1751233843726,-620.96,0.00018873,2]
[368609154,1751233843735,-2282.49,0.00018873,2]
[368609155,1751233843745,-460.0,0.00018873,2]
[368609156,1751233843754,-936.33,0.00018873,2]
[368609157,1751233843764,-460.0,0.00018873,2]
[368609158,1751233843773,-899.13,0.00018873,2]
[368609159,1751233843782,-460.0,0.00018873,2]
[368609160,1751233843792,-460.0,0.00018873,2]
[368609161,1751233843801,-460.0,0.00018873,2]
[368609162,1751233843810,-460.0,0.00018873,2]
[368609163,1751233843820,-288.21,0.00018873,2]
[368609164,1751233843829,-460.0,0.00018873,2]
[368609165,1751233843838,-460.0,0.00018874,2]
[368609166,1751233843847,-460.0,0.00018874,2]
[368609167,1751233843857,-460.0,0.00018874,2]
[368609168,1751233843866,-474.23,0.00018874,2]
[368609169,1751233843876,-460.0,0.00018874,2]
[368609170,1751233843885,-460.0,0.00018874,2]
[368609171,1751233843894,-460.0,0.00018874,2]
[368609172,1751233843903,-460.0,0.00018874,2]
[368609173,1751233843912,-622.66,0.00018874,2]
[368609174,1751233843922,-1028.11,0.00018874,2]
[368609175,1751233843931,-514.83942294,0.00018874,2]
[368609176,1751233843940,-1576.52,0.00018874,2]
[368609177,1751233843950,-853.98,0.00018874,2]
[368609178,1751233843959,-500.0,0.00018874,2]
[368609179,1751233843969,-460.0,0.00018874,2]
[368609180,1751233843978,-460.0,0.00018874,2]
[368609181,1751233843987,-460.0,0.00018874,2]
[368609182,1751233843997,-960.49,0.00018874,2]
[368609183,1751233844006,-618.35,0.00018874,2]
[368609184,1751233844016,-2366.18,0.00018874,2]
[368609185,1751233844025,-460.0,0.00018874,2]
[368609186,1751233844034,-471.95,0.00018874,2]
[368609187,1751233844044,-3061.77,0.00018874,2]
[368609188,1751233844053,-778.68,0.00018874,2]
[368609189,1751233844062,-1165.47,0.00018874,2]
[368609190,1751233844071,-460.0,0.00018875,2]
[368609191,1751233844080,-460.0,0.00018875,2]
[368609192,1751233844089,-941.78,0.00018875,2]
[368609193,1751233844098,-460.0,0.00018876,2]
[368609194,1751233844107,-460.0,0.00018876,2]
[368609195,1751233844117,-775.0,0.00018893,2]
[368609196,1751233844126,-300.61788638,0.000189,2]
[368609197,1751233844135,-4176.41245516,0.000189,2]
[368609198,1751233844144,-714.0,0.00018927,2]
[368609199,1751233844153,-500.0,0.00018934,2]
[368609200,1751233844162,-775.0,0.00018935,2]
[368609201,1751233844171,-1249.21430024,0.00019078,2]
[368609202,1751233844181,-4176.41245501,0.00019107,2]
[368609203,1751233844190,-460.0,0.00019146,2]
[368609204,1751233844199,-460.0,0.00019146,2]
[368609205,1751233844209,-1066.61,0.00019146,2]
[368609206,1751233844218,-460.0,0.00019147,2]
[368609207,1751233844227,-1718.89,0.00019147,2]
[368609208,1751233844237,-509.77,0.00019147,2]
[368609209,1751233844246,-460.0,0.00019147,2]
[368609210,1751233844255,-460.0,0.00019147,2]
[368609211,1751233844265,-527.5,0.00019147,2]
[368609212,1751233844274,-2121.93,0.00019147,2]
[368609213,1751233844283,-1980.08,0.00019147,2]
[368609214,1751233844292,-460.0,0.00019147,2]
[368609215,1751233844302,-460.0,0.00019147,2]
[368609216,1751233844311,-460.0,0.00019147,2]
[368609217,1751233844320,-1967.76,0.00019147,2]
[368609218,1751233844329,-620.96,0.00019147,2]
[368609219,1751233844338,-2282.49,0.00019147,2]
[368609220,1751233844347,-460.0,0.00019147,2]
[368609221,1751233844357,-936.33,0.00019147,2]
[368609222,1751233844366,-460.0,0.00019147,2]
[368609223,1751233844375,-899.13,0.00019147,2]
[368609224,1751233844384,-460.0,0.00019147,2]
[368609225,1751233844394,-460.0,0.00019147,2]
[368609226,1751233844403,-460.0,0.00019147,2]
[368609227,1751233844412,-460.0,0.00019147,2]
[368609228,1751233844424,-395.38096173,0.00019147,2]
[368609229,1751233844433,-460.0,0.00019148,2]
[368609230,1751233844442,-460.0,0.00019148,2]
[368609231,1751233844452,-460.0,0.00019148,2]
[368609232,1751233844461,-474.23,0.00019148,2]
[368609233,1751233844472,-460.0,0.00019148,2]
[368609234,1751233844481,-460.0,0.00019148,2]
[368609235,1751233844490,-460.0,0.00019148,2]
[368609236,1751233844500,-460.0,0.00019148,2]
[368609237,1751233844509,-622.66,0.00019148,2]
[368609238,1751233844518,-1028.11,0.00019148,2]
[368609239,1751233844527,-1576.52,0.00019148,2]
[368609240,1751233844536,-853.98,0.00019148,2]
[368609241,1751233844545,-444.1983649,0.00019148,2]
[368609252,1751233871959,361.934243,0.00013699,2]
[368609255,1751234417339,4930.03428686,0.00017325,2]
[368609256,1751234417363,12005.77901494,0.00017325,2]
[368609257,1751234632158,500.0,0.00016972,2]
[368609258,1751234633737,500.0,0.00018068,2]
[368609259,1751234683019,-197.99027078,0.00018124,2]
[368609260,1751234685261,-44.06920044,0.00018124,2]
[368609261,1751234685283,-115.93079956,0.000182,2]
[368609262,1751234687169,-75.9571995,0.000182,2]
[368609263,1751234687191,-97.29022089,0.00018224,2]
[368609264,1751234692321,-94.59777817,0.00018224,2]
[368609265,1751234692344,-139.40418912,0.00018246,2]
[368609266,1751234697211,-20.59581088,0.00018246,2]
[368609267,1751234697235,-139.40418912,0.00018246,2]
[368609268,1751234700147,-274.52604844,0.00018246,2]
[368609269,1751234703200,-172.35929982,0.00018246,2]
[368609270,1751234706353,-157.20715644,0.00018246,2]
[368609271,1751234711344,-157.14764056,0.00018246,2]
[368609272,1751234717247,-180.36767242,0.00018246,2]
[368609273,1751234777811,-180.36767242,0.00018224,2]
[368609274,1751234777832,-56.94586558,0.00018224,2]
[368609511,1751235038091,-624.67088144,0.00018223,2]
[368609512,1751235038101,-100.9879932,0.00018246,2]
[368609513,1751235038112,-160.0,0.00018252,2]
[368609514,1751235038121,-1182.0,0.00018252,2]
[368609515,1751235038131,-300.0,0.00018321,2]
[368609516,1751235038141,-300.0,0.00018321,2]
[368609517,1751235038151,-300.0,0.00018321,2]
[368609518,1751235038160,-1200.0,0.00018321,2]
[368609519,1751235038170,-460.0,0.00018322,2]
[368609520,1751235038180,-460.0,0.00018322,2]
[368609521,1751235038189,-460.0,0.00018322,2]
[368609522,1751235038199,-460.0,0.00018322,2]
[368609523,1751235038209,-460.0,0.00018322,2]
[368609524,1751235038218,-460.0,0.00018322,2]
[368609525,1751235038228,-460.0,0.00018322,2]
[368609526,1751235038237,-460.0,0.00018322,2]
[368609527,1751235038246,-191.59853848,0.00018322,2]
[368609528,1751235038255,-460.0,0.00018322,2]
[368609530,1751235038264,-1457.24,0.00018322,2]
[368609532,1751235038274,-460.0,0.00018322,2]
[368609533,1751235038283,-460.0,0.00018322,2]
[368609534,1751235038292,-460.0,0.00018322,2]
[368609535,1751235038302,-460.0,0.00018323,2]
[368609536,1751235038311,-460.0,0.00018323,2]
[368609537,1751235038320,-460.0,0.00018323,2]
[368609538,1751235038330,-460.0,0.00018323,2]
[368609539,1751235038339,-460.0,0.00018323,2]
[368609540,1751235038348,-460.0,0.00018323,2]
[368609541,1751235038359,-460.0,0.00018323,2]
[368609542,1751235038371,-419.86257732,0.00018323,2]
[368609543,1751235038379,-460.0,0.00018323,2]
[368609544,1751235038388,-460.0,0.00018323,2]
[368609545,1751235038398,-236.65,0.00018323,2]
[368609546,1751235038407,-460.0,0.00018323,2]
[368609547,1751235038418,-460.0,0.00018323,2]
[368609548,1751235038429,-460.0,0.00018323,2]
[368609549,1751235038438,-2032.3,0.00018323,2]
[368609550,1751235038447,-460.0,0.00018323,2]
[368609551,1751235038457,-460.0,0.00018323,2]
[368609552,1751235038466,-1565.73,0.00018323,2]
[368609553,1751235038475,-460.0,0.00018323,2]
[368609554,1751235038484,-553.15,0.00018323,2]
[368609555,1751235038493,-2450.2,0.00018323,2]
[368609556,1751235038502,-460.0,0.00018323,2]
[368609557,1751235038512,-460.0,0.00018323,2]
[368609558,1751235038521,-460.0,0.00018323,2]
[368609559,1751235038530,-460.76,0.00018323,2]
[368609560,1751235038540,-460.0,0.00018323,2]
[368609561,1751235038550,-460.0,0.00018323,2]
[368609562,1751235038559,-460.0,0.00018323,2]
[368609563,1751235038569,-460.0,0.00018323,2]
[368609564,1751235038578,-612.49,0.00018323,2]
[368609565,1751235038587,-460.0,0.00018323,2]
[368609566,1751235038596,-2357.05,0.00018323,2]
[368609567,1751235038606,-460.0,0.00018323,2]
[368609568,1751235038616,-2202.17,0.00018323,2]
[368609569,1751235038626,-656.98,0.00018323,2]
[368609570,1751235038635,-2553.27,0.00018323,2]
[368609571,1751235038645,-460.0,0.00018323,2]
[368609572,1751235038655,-460.0,0.00018323,2]
[368609573,1751235038665,-341.3516351,0.00018323,2]
[368609574,1751235038674,-460.0,0.00018323,2]
[368609575,1751235038684,-555.32131225,0.00018323,2]
[368609576,1751235038694,-1117.64,0.00018323,2]
[368609577,1751235038704,-460.0,0.00018323,2]
[368609578,1751235038714,-460.0,0.00018323,2]
[368609579,1751235038724,-208.4586394,0.00018323,2]
[368609580,1751235038735,-460.0,0.00018323,2]
[368609581,1751235038747,-460.0,0.00018323,2]
[368609582,1751235038758,-460.0,0.00018323,2]
[368609583,1751235038768,-489.43118413,0.00018323,2]
[368609584,1751235038779,-460.0,0.00018323,2]
[368609585,1751235038792,-1073.37,0.00018323,2]
[368609586,1751235038804,-460.0,0.00018323,2]
[368609587,1751235038815,-460.0,0.00018323,2]
[368609588,1751235038826,-460.0,0.00018323,2]
[368609589,1751235038838,-763.09,0.00018323,2]
[368609590,1751235038857,-460.0,0.00018323,2]
[368609591,1751235038873,-460.0,0.00018323,2]
[368609592,1751235038883,-460.0,0.00018324,2]
[368609593,1751235038894,-460.0,0.00018324,2]
[368609594,1751235038904,-199.17743243,0.00018324,2]
[368609595,1751235038914,-460.0,0.00018324,2]
[368609596,1751235038923,-460.0,0.00018324,2]
[368609597,1751235038933,-460.0,0.00018324,2]
[368609598,1751235038944,-460.0,0.00018324,2]
[368609599,1751235038954,-460.0,0.00018324,2]
[368609600,1751235038964,-460.0,0.00018324,2]
[368609601,1751235038974,-460.0,0.00018324,2]
[368609602,1751235038983,-460.0,0.00018324,2]
[368609603,1751235038994,-460.0,0.00018324,2]
[368609604,1751235039004,-460.0,0.00018324,2]
[368609605,1751235039014,-460.0,0.00018324,2]
[368609606,1751235039024,-460.0,0.00018324,2]
[368609607,1751235039035,-460.0,0.00018324,2]
[368609608,1751235039045,-460.0,0.00018324,2]
[368609609,1751235039055,-460.0,0.00018324,2]
[368609610,1751235039065,-460.0,0.00018324,2]
[368609611,1751235039075,-467.07,0.00018324,2]
[368609612,1751235039085,-460.0,0.00018324,2]
[368609613,1751235039094,-609.95,0.00018324,2]
[368609614,1751235039104,-460.0,0.00018324,2]
[368609615,1751235039116,-603.18,0.00018324,2]
[368609616,1751235039126,-460.0,0.00018324,2]
[368609617,1751235039136,-460.0,0.00018324,2]
[368609618,1751235039145,-489.51,0.00018324,2]
[368609619,1751235039363,-460.0,0.00018324,2]
[368609620,1751235039373,-460.0,0.00018324,2]
[368609621,1751235039382,-460.0,0.00018324,2]
[368609622,1751235039391,-460.0,0.00018324,2]
[368609623,1751235039400,-460.0,0.00018324,2]
[368609624,1751235039409,-460.0,0.00018324,2]
[368609625,1751235039418,-460.0,0.00018324,2]
[368609626,1751235039427,-460.0,0.00018324,2]
[368609627,1751235039436,-460.0,0.00018324,2]
[368609628,1751235039445,-460.0,0.00018324,2]
[368609629,1751235039455,-460.0,0.00018324,2]
[368609630,1751235039464,-460.0,0.00018324,2]
[368609631,1751235039473,-2884.44,0.00018324,2]
[368609632,1751235039483,-460.0,0.00018324,2]
[368609633,1751235039492,-950.73,0.00018324,2]
[368609634,1751235039501,-460.0,0.00018324,2]
[368609635,1751235039512,-460.0,0.00018324,2]
[368609636,1751235039521,-460.0,0.00018324,2]
[368609637,1751235039530,-460.0,0.00018324,2]
[368609638,1751235039539,-462.1,0.00018324,2]
[368609639,1751235039549,-500.0,0.00018324,2]
[368609640,1751235039559,-610.49,0.00018324,2]
[368609641,1751235039568,-954.77,0.00018324,2]
[368609642,1751235039578,-440.54072667,0.00018325,2]
[368609643,1751235039587,-524.82371217,0.00018325,2]
[368609644,1751235039596,-460.0,0.00018325,2]
[368609645,1751235039605,-460.0,0.00018325,2]
[368609646,1751235039617,-461.10927771,0.00018325,2]
[368609647,1751235039626,-460.0,0.00018325,2]
[368609648,1751235039635,-460.0,0.00018325,2]
[368609649,1751235039645,-160.00762965,0.00018325,2]
[368609650,1751235039654,-460.0,0.00018325,2]
[368609651,1751235039664,-460.0,0.00018325,2]
[368609652,1751235039674,-460.0,0.00018325,2]
[368609653,1751235039683,-460.0,0.00018325,2]
[368609654,1751235039693,-460.0,0.00018325,2]
[368609655,1751235039702,-460.0,0.00018325,2]
[368609656,1751235039711,-407.92684582,0.00018325,2]
[368609657,1751235039721,-503.3,0.00018325,2]
[368609658,1751235039730,-460.0,0.00018325,2]
[368609659,1751235039739,-81.55688582,0.00018325,2]
[368609660,1751235039753,-151.92775208,0.00018325,2]
[368609661,1751235039762,-460.0,0.00018325,2]
[368609662,1751235039772,-460.0,0.00018325,2]
[368609663,1751235039783,-460.0,0.00018325,2]
[368609664,1751235039796,-460.0,0.00018325,2]
[368609665,1751235039806,-460.0,0.00018325,2]
[368609666,1751235039817,-460.0,0.00018325,2]
[368609667,1751235039828,-460.0,0.00018325,2]
[368609668,1751235039847,-460.0,0.00018325,2]
[368609669,1751235039867,-460.0,0.00018325,2]
[368609671,1751235039883,-460.0,0.00018325,2]
[368609672,1751235039893,-460.0,0.00018325,2]
[368609673,1751235039902,-460.0,0.00018325,2]
[368609674,1751235039912,-460.0,0.00018325,2]
[368609675,1751235039922,-460.0,0.00018325,2]
[368609676,1751235039931,-460.0,0.00018325,2]
[368609677,1751235039941,-460.0,0.00018325,2]
[368609678,1751235039951,-460.0,0.00018325,2]
[368609679,1751235039961,-460.0,0.00018325,2]
[368609680,1751235039972,-460.0,0.00018325,2]
[368609681,1751235039982,-460.0,0.00018325,2]
[368609682,1751235039992,-460.0,0.00018325,2]
[368609683,1751235040002,-460.0,0.00018325,2]
[368609684,1751235040012,-460.0,0.00018325,2]
[368609685,1751235040022,-460.0,0.00018325,2]
[368609686,1751235040033,-460.0,0.00018325,2]
[368609687,1751235040043,-460.0,0.00018325,2]
[368609688,1751235040053,-460.0,0.00018325,2]